[Event "USA-ch Women 2024"]
[Site "Saint Louis"]
[Date "2024.10.23"]
[Round "10.1"]
[White "Lee, Megan"]
[Black "Cervantes Landeiro, Thalia"]
[Result "0-1"]
[ECO "B32"]
[WhiteElo "2253"]
[BlackElo "2302"]
[Annotator "RC"]
[PlyCount "84"]
[EventDate "2024.10.09"]
[EventType "tourn"]
[EventCountry "USA"]
[SourceTitle "playchess.com"]
[Source "ChessBase"]
[SourceQuality "1"]
[TimeControl "40/5400+30:1800+30"]

1. e4 {[%emt 0:00:01]} c5 {[%emt 0:00:25]} 2. Nf3 {[%emt 0:00:05]} Nc6 {[%emt 0:00:10]} 3. d4 {[%emt 0:01:41]} cxd4 {[%emt 0:00:09]} 4. Nxd4 {[%emt 0:00:01]} e5 {[%emt 0:00:09]} 5. Nb5 {[%emt 0:00:24]} d6 {[%emt 0:00:18]} 6. N1c3 {[%emt 0:02:30]} a6 {[%emt 0:00:12]} 7. Na3 {[%emt 0:00:02]} Be7 {[%emt 0:00:20]} 8. Nd5 {[%emt 0:01:10]} Nf6 {[%emt 0:00:32]} 9. Nxf6+ {[%emt 0:04:10]} Bxf6 {[%emt 0:00:08]} 10. Nc4 {[%emt 0:00:58]} O-O {[%emt 0:02:59]} 11. Nxd6 {[%emt 0:04:02]} Be6 {[%emt 0:12:09]} 12. c3 {[%emt 0:12:10]} Qc7 {[%emt 0:06:19]} 13. Nf5 {[%emt 0:06:09]} Bxf5 {[%emt 0:06:07]} 14. exf5 {[%emt 0:00:02]} e4 {[%emt 0:00:15]} 15. Be2 {[%emt 0:06:15]} Qa5 {[%emt 0:08:18]} 16. O-O {[%emt 0:05:30]} Qxf5 {[%emt 0:00:44]} 17. Bg4 {[%emt 0:02:36]} Qa5 {[%emt 0:04:58]} 18. Qc2 {[%emt 0:02:16]} Rfe8 {[%emt 0:02:59]} 19. Bd7 {[%emt 0:05:58]} Re7 {[%emt 0:00:41]} 20. Bxc6 {[%emt 0:00:13]} bxc6 {[%emt 0:00:06]} 21. Re1 {[%emt 0:00:24]} Rae8 {[%emt 0:02:05]} 22. Be3 {[%emt 0:01:10]} Be5 {[%emt 0:03:47]} 23. b4 {[%emt 0:11:06]} Qc7 {[%emt 0:01:05]} 24. h3 {[%emt 0:01:15]} f5 {[%emt 0:03:18]} 25. Bc5 {[%emt 0:00:50]} Re6 {[%emt 0:01:42]} 26. Qb3 {[%emt 0:03:22]} Qf7 {[%emt 0:02:20]} 27. Rad1 {[%emt 0:01:36]} Bb8 {[%emt 0:05:04]} 28. Qc4 {[%emt 0:04:48]} h5 {[%emt 0:04:50]} 29. Rd4 {[%emt 0:03:21]} Kh7 {[%emt 0:10:42]} 30. Bd6 {[%emt 0:05:00]} Ba7 {[%emt 0:00:50]} 31. Bc5 {[%emt 0:00:02]} Bxc5 {[%emt 0:04:10]} 32. Qxc5 {[%emt 0:01:58]} Qg6 {[%emt 0:01:16]} 33. Kh2 {[%emt 0:08:53]} f4 {[%emt 0:01:37]} 34. Rdd1 {[%emt 0:01:29]} e3 {[%emt 0:04:30]} 35. f3 {[%emt 0:03:35]} e2 {[%emt 0:01:53]} 36. Rc1 {[%emt 0:00:33]} Re3 {[%emt 0:00:21]} 37. Kh1 {[%emt 0:01:06]} R8e5 {[%emt 0:01:45]} 38. Qc4 {[%emt 0:00:08]} Qg3 {[%emt 0:01:13]} 39. Qxa6 {[%emt 0:00:32]} Qf2 {[%emt 0:02:02]} 40. h4 {[%emt 0:00:38]} Rxf3 {[%emt 0:02:47]} 41. Qxc6 {[%emt 0:07:54]} Qxe1+ {[%emt 0:02:22]} 42. Rxe1 {[%emt 0:00:41]} Rf1+ {[%emt 0:00:05]} 0-1

[Event "USA-ch Women 2024"]
[Site "Saint Louis"]
[Date "2024.10.23"]
[Round "10.2"]
[White "Lee, Alice"]
[Black "Tokhirjonova, Gulrukhbegim"]
[Result "1-0"]
[ECO "D07"]
[WhiteElo "2395"]
[BlackElo "2374"]
[Annotator "RC"]
[PlyCount "131"]
[EventDate "2024.10.09"]
[EventType "tourn"]
[EventCountry "USA"]
[SourceTitle "playchess.com"]
[Source "ChessBase"]
[SourceQuality "1"]
[TimeControl "40/5400+30:1800+30"]

1. d4 {[%emt 0:02:54]} d5 {[%emt 0:00:21]} 2. c4 {[%emt 0:00:16]} Nc6 {[%emt 0:00:21]} 3. Nf3 {[%emt 0:01:13]} Bg4 {[%emt 0:01:03]} 4. Nc3 {[%emt 0:09:52]} e6 {[%emt 0:01:46]} 5. Bg5 {[%emt 0:02:04]} Be7 {[%emt 0:00:36]} 6. Bxe7 {[%emt 0:00:28]} Ngxe7 {[%emt 0:00:15]} 7. e3 {[%emt 0:00:37]} O-O {[%emt 0:03:34]} 8. Be2 {[%emt 0:01:27]} dxc4 {[%emt 0:04:31]} 9. Bxc4 {[%emt 0:04:46]} e5 {[%emt 0:11:05]} 10. d5 {[%emt 0:03:51]} Nb8 {[%emt 0:02:50]} 11. h3 {[%emt 0:07:32]} Bxf3 {[%emt 0:01:14]} 12. Qxf3 {[%emt 0:00:09]} Nc8 {[%emt 0:00:45]} 13. Bd3 {[%emt 0:12:09]} Nd7 {[%emt 0:06:07]} 14. O-O {[%emt 0:00:00]} Nd6 {[%emt 0:00:29]} 15. e4 {[%emt 0:00:47]} a6 {[%emt 0:01:42]} 16. Rac1 {[%emt 0:02:41]} Rc8 {[%emt 0:02:27]} 17. Rc2 {[%emt 0:01:57]} c5 {[%emt 0:05:47]} 18. dxc6 {[%emt 0:02:58]} Rxc6 {[%emt 0:00:16]} 19. Rd1 {[%emt 0:00:34]} Nc5 {[%emt 0:01:14]} 20. Qg3 {[%emt 0:02:37]} Qe8 {[%emt 0:12:14]} 21. Rcd2 {[%emt 0:06:08]} Qe6 {[%emt 0:06:53]} 22. Qe3 {[%emt 0:02:55]} h6 {[%emt 0:06:21]} 23. Be2 {[%emt 0:01:04]} Nc4 {[%emt 0:02:18]} 24. Bxc4 {[%emt 0:00:04]} Qxc4 {[%emt 0:00:08]} 25. Rd5 {[%emt 0:05:17]} Re8 {[%emt 0:03:56]} 26. Rd8 {[%emt 0:07:47]} Rxd8 {[%emt 0:03:51]} 27. Rxd8+ {[%emt 0:00:07]} Kh7 {[%emt 0:00:06]} 28. Rd5 {[%emt 0:05:48]} Na4 {[%emt 0:03:48]} 29. Nxa4 {[%emt 0:01:51]} Qxa4 {[%emt 0:00:02]} 30. a3 {[%emt 0:02:25]} Qc2 {[%emt 0:01:08]} 31. Rxe5 {[%emt 0:02:42]} Qxb2 {[%emt 0:04:26]} 32. Re7 {[%emt 0:00:22]} Qc1+ {[%emt 0:07:45]} 33. Qxc1 {[%emt 0:00:17]} Rxc1+ {[%emt 0:00:07]} 34. Kh2 {[%emt 0:00:04]} f6 {[%emt 0:01:45]} 35. Rxb7 {[%emt 0:00:10]} Rc3 {[%emt 0:00:06]} 36. Ra7 {[%emt 0:01:59]} Rxa3 {[%emt 0:00:08]} 37. g4 {[%emt 0:00:40]} a5 {[%emt 0:00:59]} 38. h4 {[%emt 0:00:37]} h5 {[%emt 0:02:39]} 39. g5 {[%emt 0:02:14]} fxg5 {[%emt 0:01:43]} 40. hxg5 {[%emt 0:00:15]} Kg6 {[%emt 0:00:12]} 41. f4 {[%emt 0:31:00]} h4 {[%emt 0:05:15]} 42. f5+ {[%emt 0:00:00]} Kxg5 {[%emt 0:03:27]} 43. Rxg7+ {[%emt 0:00:00]} Kf4 {[%emt 0:00:12]} 44. f6 {[%emt 0:00:00]} Kxe4 {[%emt 0:00:30]} 45. Rg4+ {[%emt 0:00:00]} Ke5 {[%emt 0:03:06]} 46. Rf4 {[%emt 0:00:00]} Kxf4 {[%emt 0:09:26]} 47. f7 {[%emt 0:00:00]} Kg4 {[%emt 0:03:25]} 48. f8=Q {[%emt 0:00:00]} Rg3 {[%emt 0:00:06]} 49. Qc8+ {[%emt 0:00:00]} Kh5 {[%emt 0:00:17]} 50. Qe8+ {[%emt 0:00:00]} Kg4 {[%emt 0:01:30]} 51. Qa4+ {[%emt 0:00:00]} Kh5 {[%emt 0:00:55]} 52. Qxa5+ {[%emt 0:00:00]} Kg6 {[%emt 0:00:47]} 53. Qd8 {[%emt 0:00:00]} Kh5 {[%emt 0:00:32]} 54. Qe8+ {[%emt 0:00:00]} Kg5 {[%emt 0:00:20]} 55. Qe4 {[%emt 0:00:00]} Kh5 {[%emt 0:01:11]} 56. Qf4 {[%emt 0:00:00]} Rg5 {[%emt 0:01:12]} 57. Qf7+ {[%emt 0:00:00]} Kg4 {[%emt 0:00:37]} 58. Qc4+ {[%emt 0:00:00]} Kh5 {[%emt 0:00:14]} 59. Qe2+ {[%emt 0:00:00]} Kg6 {[%emt 0:02:13]} 60. Kh3 {[%emt 0:00:00]} Rh5 {[%emt 0:00:59]} 61. Qe6+ {[%emt 0:00:00]} Kg7 {[%emt 0:01:39]} 62. Kg4 {[%emt 0:00:00]} Rh6 {[%emt 0:00:20]} 63. Qe7+ {[%emt 0:00:00]} Kg6 {[%emt 0:01:07]} 64. Qe8+ {[%emt 0:00:00]} Kf6 {[%emt 0:00:25]} 65. Qf8+ {[%emt 0:00:00]} Kg6 {[%emt 0:00:16]} 66. Qg8+ {[%emt 0:00:00]} 1-0

[Event "USA-ch Women 2024"]
[Site "Saint Louis"]
[Date "2024.10.23"]
[Round "10.3"]
[White "Abrahamyan, Tatev"]
[Black "Krush, Irina"]
[Result "0-1"]
[ECO "B43"]
[WhiteElo "2327"]
[BlackElo "2388"]
[Annotator "TA"]
[PlyCount "134"]
[EventDate "2024.10.09"]
[EventType "tourn"]
[EventCountry "USA"]
[SourceTitle "playchess.com"]
[Source "ChessBase"]
[SourceQuality "1"]
[TimeControl "40/5400+30:1800+30"]

{[%evp 66,134,49,0,0,0,0,0,41,39,116,93,197,17,564,502,772,763,732,647,620,621,766,814,673,679,661,517,543,-1672,-1422,-1272,0,0,122,114,90,124,74,-647,-591,-666,-550,-612,-583,-1220,-1122,-29982,-1088,-833,-1012,-29971,-29972,-29972,-29973,-29962,0,-29963,0,-29973,-29975,-29975,-29976,-29976,-29977,-29977,-29978,-29978,-29979,-29979,-29980]} 1. e4 {[%emt 0:00:07]} c5 {[%emt 0:00:08]} 2. Nf3 {[%emt 0:00:01]} e6 {[%emt 0:00:09]} 3. d4 {[%emt 0:00:08]} cxd4 {[%emt 0:00:07]} 4. Nxd4 {[%emt 0:00:09]} a6 {[%emt 0:00:12]} 5. Nc3 {[%emt 0:00:28]} Qc7 {[%emt 0:01:30]} 6. Bd3 {[%emt 0:01:02]} Bc5 {[%emt 0:00:00]} 7. Nb3 {[%emt 0:03:16] B43: Sicilian: Kan Variation: 5 Nc3.} Ba7 {[%emt 0:05:16]} 8. Qg4 {[%emt 0:25:04]} Kf8 {[%emt 0:14:58]} 9. Bf4 {[%emt 0:00:10]} d6 {[%emt 0:01:11]} 10. Qe2 {[%emt 0:06:01]} Ne7 $146 {[%emt 0:02:20]} ({Predecessor:} 10... Nc6 11. O-O-O Nge7 12. Bg3 e5 13. f4 Be6 14. Rhf1 b5 15. fxe5 dxe5 16. Nd5 Bxd5 17. exd5 Nxd5 {1-0 Edelman,D (2415)-Telljohann,S (2370) Sportland NRW-Cup 1993 (3)}) 11. O-O-O {[%emt 0:00:00]} e5 {[%emt 0:05:54]} 12. Bg3 {[%emt 0:04:20]} h5 {[%emt 0:13:43]} 13. h4 {[%emt 0:02:41]} Be6 {[%emt 0:00:00]} 14. Qd2 {[%emt 0:08:22]} Nbc6 {[%emt 0:06:59]} 15. Rhf1 {[%emt 0:15:09]} Nb4 {[%emt 0:08:36]} 16. f4 {[%emt 0:13:19]} Nxd3+ {[%emt 0:03:09]} 17. cxd3 {[%emt 0:17:08]} Nc6 {[%emt 0:07:48]} 18. Kb1 {[%emt 0:02:21]} f6 {[%emt 0:05:41]} 19. Nd5 {[%emt 0:00:57]} Qf7 {[%emt 0:05:36]} 20. Nb4 {[%emt 0:00:00]} a5 {[%emt 0:12:48]} 21. Nxc6 {[%emt 0:00:00]} bxc6 22. fxe5 {[%emt 0:00:07]} dxe5 {[%emt 0:00:32]} 23. Bxe5 {[%emt 0:00:00]} a4 {[%emt 0:00:52]} 24. Nc1 {[%emt 0:00:31]} Kg8 {[%emt 0:00:00]} 25. Bc3 {[%emt 0:02:15]} Rh6 {[%emt 0:00:34]} 26. d4 {[%emt 0:00:00]} Bc4 {[%emt 0:04:02]} 27. Rf5 {[%emt 0:02:06]} Re8 {[%emt 0:00:42]} 28. Qc2 {[%emt 0:00:31]} Rg6 {[%emt 0:00:59]} 29. Qxa4 {[%emt 0:01:44]} Rxg2 {[%emt 0:00:41]} 30. Qxc6 {[%emt 0:00:00]} Be6 {[%emt 0:00:33]} 31. Ra5 {[%emt 0:00:00]} Bb8 {[%emt 0:01:46]} 32. Ra8 {[%emt 0:00:00]} Bd7 {[%emt 0:00:00]} 33. Qb7 {[%emt 0:00:00]} Bg3 {[%emt 0:00:21]} (33... Bg4 $15 34. Qxf7+ Kxf7 35. Rf1) 34. Ra7 {[%emt 0:00:44]} (34. Nd3 $14 {deserves consideration.}) 34... Be6 $11 {[%emt 0:00:53]} 35. Qc6 {[%emt 0:00:00]} Qg6 $1 {[%emt 0:00:00]} 36. Ka1 $1 {[%emt 0:00:00]} Bg4 {[%emt 0:00:00]} 37. e5 {[%emt 0:00:00]} Rf2 (37... Rxb2 $2 38. Bxb2 Bxd1 39. exf6 gxf6 40. d5 $18) ({Better is} 37... Rc2 $14 38. Rf1 Bxh4) 38. Rg1 $16 {[%emt 0:00:35]} Bxh4 {[%emt 0:00:46]} (38... Bh2 $16 {is a better defense.} 39. Rg2 Rxg2 40. Qxg2 Bf4 41. exf6 gxf6) 39. d5 $2 {[%emt 0:00:43]} (39. Nd3 $18 Rf5 40. Bd2) 39... Rf8 $2 {[%emt 0:00:13][%mdl 8192]} (39... Kh7 $1 $11 {and Black stays safe.}) 40. e6 $18 {[%emt 0:00:00]} Rc2 {[%emt 0:09:24]} (40... Kh7 $142 41. d6 Rc2) 41. e7 $18 {[%emt 0:02:23]} Re8 {[%emt 0:06:52]} 42. Nd3 {[%emt 0:05:28]} Kh7 {[%emt 0:05:08]} 43. Nf4 {[%emt 0:09:58]} Qe4 {[%emt 0:06:30]} 44. Qxe8 {[%emt 0:09:38]} Qxf4 {[%emt 0:00:00]} 45. a3 {[%emt 0:06:10]} Rxc3 {[%emt 0:02:50]} 46. bxc3 {[%emt 0:00:00]} Qe3 {[%emt 0:00:18]} 47. Qc6 $4 {[%emt 0:00:00][%mdl 8192]} (47. Rxg4 Qc1+ 48. Ka2 Qc2+ 49. Ka1 Qxc3+ (49... Qc1+ 50. Ka2 $11) 50. Kb1 Qb3+ 51. Ka1 Qc3+ 52. Kb1 Qb3+ 53. Ka1 Qc3+ $11) (47. Qb8 $18 Qxc3+ 48. Qb2) 47... Qxg1+ $19 {[%emt 0:00:00]} 48. Kb2 {[%emt 0:05:52]} Bf5 $2 {[%emt 0:02:43]} ({Black should try} 48... Qg2+ $19 49. Kb3 Bd1+ 50. Kb4 Qb2+ 51. Kc5 Qxc3+ 52. Kb6 Bf2+ (52... Qe3+ 53. Qc5 $11) 53. Kb7 Qe3) 49. Kb3 $1 $11 {[%emt 0:00:00]} Qb1+ {[%emt 0:00:32]} (49... Bg6 $1 $11 {remains equal.} 50. e8=Q (50. e8=R $2 {too greedy.} Qxa7 51. Rd8 Qf2 $19) 50... Qb1+ (50... Bxe8 51. Qxe8 Qb1+ 52. Kc4 $11) 51. Ka4 Qc2+ 52. Kb4 Qb2+ 53. Ka4 (53. Kc4 Qa2+ 54. Kc5 Qf2+ 55. Kb5 Qb2+ 56. Kc4 Qa2+ 57. Kb4 Qb2+ 58. Kc4 $11) 53... Qc2+ 54. Kb4 Bxe8 55. Qxe8 Qb2+ 56. Ka4 Qc2+ 57. Kb4 Qb2+ 58. Kc4 (58. Ka4 Qc2+ 59. Kb4 $11) 58... Qa2+ 59. Kb4 Qb2+) 50. Ka4 $16 {[%emt 0:01:38]} Qe4+ {[%emt 0:01:17] [#]} 51. Ka5 $1 {[%emt 0:00:00]} Bg6 {[%emt 0:00:17]} 52. Ra8 $2 {[%emt 0:00:00][%mdl 8192]} (52. Qd7 $16 Kh6 53. Ra8) 52... Qxe7 $19 {[%emt 0:00:31]} 53. a4 {[%emt 0:00:00]} Be1 {[%emt 0:00:45]} 54. Qc8 {[%emt 0:00:00]} Kh6 {[%emt 0:00:20]} 55. Ka6 {[%emt 0:00:00]} Bd3+ {[%emt 0:00:34]} 56. c4 {[%emt 0:00:00]} Qb4 {[%emt 0:00:32]} (56... Qd6+ $142 57. Qc6 Bxc4+ 58. Kb6 Bf2+ (58... Qxd5 $2 59. Rh8+ Kg5 60. Qxd5+ Bxd5 61. Re8 $19) 59. Ka5 Qf4 (59... Qxd5+ $2 60. Qxd5 Bxd5 61. Rc8 $19) 60. Rh8+ Kg5 61. Kb4 Bxd5+ 62. Kb5 Bxc6+ 63. Kxc6 Qxa4+ 64. Kd6 Qa6+ 65. Kd7 Qb5+ 66. Kd6 Kg6 67. Rg8 Bg3+ 68. Ke7 Qb7+ 69. Ke8 Bd6 (69... Qf7+ {is a self mate.} 70. Kd8 Bd6 71. Rxg7+ Kxg7 72. Kc8 Qc7#) 70. Rxg7+ Kxg7 (70... Qxg7 $2 71. Kd8 Qe7+ 72. Kc8 Qc7#) 71. Kd8 Qe7+ 72. Kc8 Qc7#) 57. Qh8+ $19 {[%emt 0:00:00]} Bh7 {[%emt 0:00:33]} 58. Qc8 {[%emt 0:00:00]} Qxa4+ {[%emt 0:00:18]} 59. Kb7 {[%emt 0:00:00]} Qb4+ {[%emt 0:00:13]} 60. Ka6 {[%emt 0:00:00]} Qa4+ {[%emt 0:00:09]} 61. Kb7 $1 {[%emt 0:00:00]} Qb4+ {[%emt 0:00:04]} 62. Ka6 {[%emt 0:00:37]} Bf2 {[%emt 0:00:58]} 63. Qc7 {[%emt 0:00:00]} Bd3 {[%emt 0:00:26]} 64. Qf4+ {[%emt 0:00:00]} Kh7 {[%emt 0:00:15]} 65. Qxf2 {[%emt 0:00:00]} Bxc4+ {[%emt 0:00:49]} 66. Ka7 {[%emt 0:00:00]} Qa5+ {[%emt 0:00:23]} ({Stronger than} 66... Bxd5 67. Qf5+ g6 68. Qxd5 $16) 67. Kb8 {[%emt 0:00:00]} Qd8+ {[%emt 0:00:15]} 0-1

[Event "USA-ch Women 2024"]
[Site "Saint Louis"]
[Date "2024.10.23"]
[Round "10.4"]
[White "Zatonskih, Anna"]
[Black "Yip, Carissa"]
[Result "1-0"]
[ECO "B07"]
[WhiteElo "2312"]
[BlackElo "2418"]
[Annotator "RC"]
[PlyCount "151"]
[EventDate "2024.10.09"]
[EventType "tourn"]
[EventCountry "USA"]
[SourceTitle "playchess.com"]
[Source "ChessBase"]
[SourceQuality "1"]
[TimeControl "40/5400+30:1800+30"]

1. d4 {[%emt 0:00:10]} Nf6 {[%emt 0:00:10]} 2. Nf3 {[%emt 0:00:21]} g6 {[%emt 0:00:23]} 3. Nbd2 {[%emt 0:00:23]} Bg7 {[%emt 0:00:09]} 4. e4 {[%emt 0:00:19]} d6 {[%emt 0:00:04]} 5. Bb5+ {[%emt 0:02:14]} Nfd7 {[%emt 0:09:05]} 6. c3 {[%emt 0:22:45]} O-O {[%emt 0:00:15]} 7. O-O {[%emt 0:00:14]} c5 {[%emt 0:06:59]} 8. Re1 {[%emt 0:05:45]} Nc6 {[%emt 0:09:00]} 9. d5 {[%emt 0:13:59]} Nce5 {[%emt 0:00:40]} 10. Ng5 {[%emt 0:03:12]} h6 {[%emt 0:01:19]} 11. Nh3 {[%emt 0:00:10]} Nb6 {[%emt 0:07:30]} 12. Nf4 {[%emt 0:07:37]} c4 {[%emt 0:01:04]} 13. h3 {[%emt 0:14:38]} f5 {[%emt 0:05:39]} 14. b3 {[%emt 0:10:35]} g5 {[%emt 0:03:50]} 15. Nh5 {[%emt 0:00:24]} Bh8 {[%emt 0:00:05]} 16. exf5 {[%emt 0:00:43]} Bxf5 {[%emt 0:00:24]} 17. Ng3 {[%emt 0:00:56]} Bg6 {[%emt 0:25:32]} 18. Nde4 {[%emt 0:00:10]} a6 {[%emt 0:01:11]} 19. Bxc4 {[%emt 0:00:08]} Nbxc4 {[%emt 0:00:04]} 20. bxc4 {[%emt 0:00:05]} Nxc4 {[%emt 0:00:02]} 21. h4 {[%emt 0:02:41]} Qb6 {[%emt 0:03:08]} 22. hxg5 {[%emt 0:01:51]} h5 {[%emt 0:00:03]} 23. Qe2 {[%emt 0:04:34]} Rac8 {[%emt 0:00:31]} 24. a4 {[%emt 0:06:54]} h4 {[%emt 0:03:56]} 25. Nh1 {[%emt 0:01:03]} h3 {[%emt 0:00:10]} 26. Be3 {[%emt 0:00:42]} Qa5 {[%emt 0:02:22]} 27. Bd4 {[%emt 0:00:22]} Bxd4 {[%emt 0:02:13]} 28. cxd4 {[%emt 0:00:01]} Qxd5 {[%emt 0:00:02]} 29. Nhg3 {[%emt 0:00:22]} Qxd4 {[%emt 0:00:48]} 30. Qg4 {[%emt 0:01:07]} Qd5 {[%emt 0:05:47]} 31. Qxh3 {[%emt 0:00:44]} Qf7 {[%emt 0:00:10]} 32. Re2 {[%emt 0:00:46]} d5 {[%emt 0:00:20]} 33. Nd2 {[%emt 0:00:19]} Bd3 {[%emt 0:00:19]} 34. g6 {[%emt 0:00:16]} Bxg6 {[%emt 0:02:59]} 35. Nf3 {[%emt 0:00:06]} e5 {[%emt 0:01:48]} 36. Nxe5 {[%emt 0:00:12]} Nxe5 {[%emt 0:00:41]} 37. Rxe5 {[%emt 0:00:02]} Qxf2+ {[%emt 0:00:05]} 38. Kh2 {[%emt 0:00:12]} Rc7 {[%emt 0:00:23]} 39. Qe6+ {[%emt 0:02:07]} Kg7 {[%emt 0:01:06]} 40. Rf1 {[%emt 0:00:38]} Rh8+ {[%emt 0:01:20]} 41. Rh5 {[%emt 0:02:45]} Qxg3+ {[%emt 0:02:59]} 42. Kxg3 {[%emt 0:00:19]} Rxh5 {[%emt 0:00:04]} 43. Qd6 {[%emt 0:21:25]} Rc3+ {[%emt 0:05:19]} 44. Rf3 {[%emt 0:01:32]} Rxf3+ {[%emt 0:01:01]} 45. gxf3 {[%emt 0:00:12]} Rf5 {[%emt 0:00:31]} 46. Qd7+ {[%emt 0:00:31]} Rf7 {[%emt 0:01:00]} 47. Qxd5 {[%emt 0:00:54]} Kh7 {[%emt 0:00:58]} 48. a5 {[%emt 0:00:38]} Kh6 {[%emt 0:00:45]} 49. Kg4 {[%emt 0:01:01]} Rg7 {[%emt 0:03:48]} 50. Qd2+ {[%emt 0:04:24]} Kh7 {[%emt 0:00:08]} 51. Kh4 {[%emt 0:00:53]} Rf7 {[%emt 0:00:07]} 52. Kg3 {[%emt 0:00:13]} Kg7 {[%emt 0:00:12]} 53. Kg4 {[%emt 0:00:24]} Kh7 {[%emt 0:00:08]} 54. Qh2+ {[%emt 0:00:18]} Kg7 {[%emt 0:00:06]} 55. Qe5+ {[%emt 0:00:14]} Kh6 {[%emt 0:02:28]} 56. Qh8+ {[%emt 0:00:26]} Bh7 {[%emt 0:00:06]} 57. f4 {[%emt 0:01:00]} Rg7+ {[%emt 0:00:20]} 58. Kf3 {[%emt 0:00:40]} Rf7 {[%emt 0:00:10]} 59. Kg3 {[%emt 0:00:11]} Rg7+ {[%emt 0:00:28]} 60. Kf2 {[%emt 0:00:16]} Rf7 {[%emt 0:00:05]} 61. Kf3 {[%emt 0:00:04]} Rf5 {[%emt 0:03:07]} 62. Qd8 {[%emt 0:01:29]} Bg6 {[%emt 0:00:38]} 63. Qh8+ {[%emt 0:00:30]} Bh7 {[%emt 0:00:04]} 64. Kg4 {[%emt 0:00:13]} Rf7 {[%emt 0:00:10]} 65. Qc3 {[%emt 0:00:26]} Bf5+ {[%emt 0:00:51]} 66. Kh4 {[%emt 0:00:17]} Kg6 {[%emt 0:00:44]} 67. Qg3+ {[%emt 0:00:40]} Kh7 {[%emt 0:01:19]} 68. Qb3 {[%emt 0:01:31]} Kg7 {[%emt 0:04:10]} 69. Kg5 {[%emt 0:00:18]} Bh7 {[%emt 0:01:56]} 70. Qc3+ {[%emt 0:00:23]} Kg8 {[%emt 0:01:01]} 71. Qc4 {[%emt 0:00:41]} Kf8 {[%emt 0:01:00]} 72. Qc5+ {[%emt 0:00:11]} Kg8 {[%emt 0:00:29]} 73. Qd5 {[%emt 0:00:13]} Kg7 {[%emt 0:00:39]} 74. Qe5+ {[%emt 0:00:20]} Kg8 {[%emt 0:06:01]} 75. Kh6 {[%emt 0:00:13]} Bd3 {[%emt 0:00:07]} 76. Qg5+ {[%emt 0:00:37]} 1-0

[Event "USA-ch Women 2024"]
[Site "Saint Louis"]
[Date "2024.10.23"]
[Round "10.5"]
[White "Paikidze, Nazi"]
[Black "Yu, Jennifer"]
[Result "1/2-1/2"]
[ECO "D02"]
[WhiteElo "2314"]
[BlackElo "2267"]
[Annotator "RC"]
[PlyCount "98"]
[EventDate "2024.10.09"]
[EventType "tourn"]
[EventCountry "USA"]
[SourceTitle "playchess.com"]
[Source "ChessBase"]
[SourceQuality "1"]
[TimeControl "40/5400+30:1800+30"]

1. Nf3 {[%emt 0:00:04]} d5 {[%emt 0:02:09]} 2. g3 {[%emt 0:00:05]} g6 {[%emt 0:00:32]} 3. Bg2 {[%emt 0:00:25]} Bg7 {[%emt 0:01:00]} 4. d4 {[%emt 0:00:06]} Nf6 {[%emt 0:05:42]} 5. O-O {[%emt 0:00:09]} O-O {[%emt 0:00:36]} 6. a4 {[%emt 0:00:04]} c6 {[%emt 0:02:53]} 7. a5 {[%emt 0:01:07]} Ne4 {[%emt 0:06:52]} 8. c4 {[%emt 0:05:02]} dxc4 {[%emt 0:03:41]} 9. Qc2 {[%emt 0:01:25]} Nd6 {[%emt 0:04:40]} 10. Nc3 {[%emt 0:12:02]} Na6 {[%emt 0:04:15]} 11. Bf4 {[%emt 0:04:41]} Be6 {[%emt 0:07:06]} 12. e4 {[%emt 0:04:56]} Nb5 {[%emt 0:07:47]} 13. Nxb5 {[%emt 0:13:13]} cxb5 {[%emt 0:00:05]} 14. d5 {[%emt 0:09:11]} Bd7 {[%emt 0:04:03]} 15. Bd2 {[%emt 0:13:39]} e5 {[%emt 0:15:19]} 16. dxe6 {[%emt 0:09:12]} Bxe6 {[%emt 0:00:09]} 17. Bc3 {[%emt 0:02:00]} Qe7 {[%emt 0:03:42]} 18. Bxg7 {[%emt 0:02:40]} Kxg7 {[%emt 0:04:10]} 19. Nd4 {[%emt 0:00:15]} Bd7 {[%emt 0:03:01]} 20. Qc3 {[%emt 0:00:45]} Kg8 {[%emt 0:00:28]} 21. h4 {[%emt 0:01:23]} Nc5 {[%emt 0:04:16]} 22. h5 {[%emt 0:01:39]} Rfe8 {[%emt 0:03:13]} 23. h6 {[%emt 0:01:36]} Qf8 {[%emt 0:01:56]} 24. Qe3 {[%emt 0:02:11]} Nd3 {[%emt 0:01:11]} 25. a6 {[%emt 0:02:42]} bxa6 {[%emt 0:03:13]} 26. Rxa6 {[%emt 0:00:06]} Ne5 {[%emt 0:00:50]} 27. Rfa1 {[%emt 0:05:40]} Ng4 {[%emt 0:01:50]} 28. Qf4 {[%emt 0:02:35]} Qxh6 {[%emt 0:00:46]} 29. Qxh6 {[%emt 0:01:45]} Nxh6 {[%emt 0:00:05]} 30. Rd6 {[%emt 0:00:44]} Re7 {[%emt 0:05:41]} 31. e5 {[%emt 0:00:14]} Rae8 {[%emt 0:00:04]} 32. Rxa7 {[%emt 0:00:36]} Bf5 {[%emt 0:00:27]} 33. Rxe7 {[%emt 0:01:16]} Rxe7 {[%emt 0:00:03]} 34. Nc6 {[%emt 0:02:07]} Re8 {[%emt 0:01:45]} 35. Rd5 {[%emt 0:01:00]} Bd3 {[%emt 0:01:15]} 36. Nb4 {[%emt 0:01:18]} Ng4 {[%emt 0:00:47]} 37. Nxd3 {[%emt 0:00:21]} cxd3 {[%emt 0:00:04]} 38. Rxd3 {[%emt 0:00:32]} Rxe5 {[%emt 0:00:19]} 39. Bf3 {[%emt 0:00:17]} h5 {[%emt 0:01:19]} 40. Rd4 {[%emt 0:00:45]} Nf6 {[%emt 0:00:47]} 41. b4 {[%emt 0:05:44]} Kf8 {[%emt 0:02:00]} 42. Bc6 {[%emt 0:02:45]} Ke7 {[%emt 0:07:57]} 43. f4 {[%emt 0:02:17]} Rf5 {[%emt 0:02:32]} 44. Kg2 {[%emt 0:02:15]} g5 {[%emt 0:03:07]} 45. Kh3 {[%emt 0:07:50]} Ke6 {[%emt 0:08:53]} 46. Bb7 {[%emt 0:00:32]} Ke7 {[%emt 0:00:09]} 47. Bc6 {[%emt 0:00:41]} Ke6 {[%emt 0:00:39]} 48. Bb7 {[%emt 0:00:04]} Ke7 {[%emt 0:00:06]} 49. Bc6 {[%emt 0:00:28]} Ke6 {[%emt 0:00:06]} 1/2-1/2